bitfinex/quotes_BTCUSD_20240803
["timestamp","ask_amount","ask_price","bid_price","bid_amount"]
[1722667387291,0.93217744,61810.0,61809.0,0.007913]
[1722667387494,0.83528478,61810.0,61809.0,0.007913]
[1722667387899,0.76515624,61810.0,61809.0,0.007913]
[1722667388315,0.83526161,61810.0,61809.0,0.007913]
[1722667388715,0.90789666,61810.0,61809.0,0.010913]
[1722667388928,0.76515624,61810.0,61809.0,0.010913]
[1722667389135,0.83526227,61810.0,61809.0,0.010913]
[1722667389353,0.90789732,61810.0,61809.0,0.010913]
[1722667389536,0.30120032,61810.0,61809.0,0.010913]
[1722667389787,0.001,61810.0,61809.0,0.132254]
[1722667390118,0.001,61810.0,61809.0,0.374937]
[1722667391177,0.00083,61815.0,61812.0,0.121335]
[1722667391451,0.00083,61815.0,61813.0,0.121332]
[1722667393022,0.00083,61815.0,61810.0,0.242676]
[1722667393509,0.00183,61815.0,61813.0,0.004]
[1722667394028,0.00083,61815.0,61813.0,0.004]
[1722667394251,0.00183,61815.0,61813.0,0.012]
[1722667394936,0.00183,61815.0,61813.0,0.008]
[1722667396000,0.00183,61815.0,61813.0,0.012]
[1722667396211,0.00157439,61814.0,61813.0,0.012]
[1722667397816,0.00157439,61814.0,61813.0,0.008]
[1722667397999,0.00157439,61814.0,61809.0,0.000913]
[1722667398194,0.00157439,61814.0,61813.0,0.005]
[1722667398528,0.00157439,61814.0,61813.0,0.013]
[1722667398904,0.28036463,61814.0,61813.0,0.008]
[1722667399138,0.39683905,61814.0,61813.0,0.008]
[1722667399358,0.34842868,61814.0,61813.0,0.008]
[1722667399529,0.42105553,61814.0,61813.0,0.008]
[1722667399761,0.66371853,61814.0,61813.0,0.008]
[1722667399980,0.94319438,61814.0,61813.0,0.008]
[1722667400192,1.31690214,61814.0,61813.0,0.008]
[1722667400400,1.19585738,61814.0,61813.0,0.008]
[1722667400963,1.19585738,61814.0,61813.0,0.013]
[1722667401327,1.19585738,61814.0,61813.0,0.008]
[1722667401730,1.20185738,61814.0,61813.0,0.009]
[1722667402311,1.19585738,61814.0,61813.0,0.008]
[1722667402459,1.19585738,61814.0,61813.0,0.009]
[1722667402460,1.20185738,61814.0,61813.0,0.009]
[1722667402661,1.34720326,61814.0,61813.0,0.009]
[1722667402898,1.34719914,61814.0,61813.0,0.009]
[1722667403349,1.26064934,61814.0,61813.0,0.001]
[1722667403552,1.19909504,61814.0,61813.0,0.001]
[1722667403861,1.34745719,61814.0,61813.0,0.001]
[1722667404064,1.20209504,61814.0,61813.0,0.001]
[1722667406619,1.25829504,61814.0,61813.0,0.001]
[1722667406888,1.17431403,61814.0,61813.0,0.001]
[1722667407075,1.25776736,61814.0,61813.0,0.001]
[1722667407334,1.25776737,61814.0,61813.0,0.001]
[1722667409168,1.25776737,61814.0,61813.0,0.001913]
[1722667414034,1.25718051,61814.0,61813.0,0.001913]
[1722667415282,1.24718051,61814.0,61813.0,0.001913]
[1722667416287,1.25718051,61814.0,61813.0,0.001913]
[1722667417488,1.18782196,61814.0,61813.0,0.001913]
[1722667417695,1.25707465,61814.0,61813.0,0.001913]
[1722667417894,1.25693578,61814.0,61813.0,0.001913]
[1722667424308,1.42048319,61814.0,61813.0,0.001913]
[1722667424515,1.36428319,61814.0,61813.0,0.001913]
[1722667424738,1.24656139,61814.0,61813.0,0.001913]
[1722667424916,1.4101088,61814.0,61813.0,0.001913]
[1722667425503,1.24656139,61814.0,61813.0,0.001913]
[1722667425925,1.19036139,61814.0,61813.0,0.001913]
[1722667426711,0.94769839,61814.0,61813.0,0.001913]
[1722667426972,0.68203539,61814.0,61813.0,0.001913]
[1722667427164,0.43937239,61814.0,61813.0,0.001913]
[1722667427366,0.58487673,61814.0,61813.0,0.001913]
[1722667427577,0.82753973,61814.0,61813.0,0.001913]
[1722667427718,1.07020273,61814.0,61813.0,0.001913]
[1722667428144,0.9890111,61814.0,61813.0,0.001913]
[1722667428447,1.09205137,61814.0,61813.0,0.001913]
[1722667428650,0.93630511,61814.0,61813.0,0.001913]
[1722667429726,0.94630511,61814.0,61813.0,0.001913]
[1722667430129,1.17896811,61814.0,61813.0,0.001913]
[1722667430701,0.93630511,61814.0,61813.0,0.001913]
[1722667431860,0.93536272,61814.0,61813.0,0.001913]
[1722667433325,0.84301155,61814.0,61813.0,0.001913]
[1722667433522,0.93690219,61814.0,61813.0,0.001913]
[1722667435326,0.93711579,61814.0,61813.0,0.001913]
[1722667438939,0.93784445,61814.0,61813.0,0.001913]
[1722667441468,0.93881838,61814.0,61813.0,0.001913]
[1722667444885,0.93846079,61814.0,61813.0,0.001913]
[1722667447958,0.94846079,61814.0,61813.0,0.001913]
[1722667448167,0.93846079,61814.0,61813.0,0.001913]
[1722667448367,0.85346349,61814.0,61813.0,0.001913]
[1722667448586,0.94799091,61814.0,61813.0,0.001913]
[1722667448791,1.0430694,61814.0,61813.0,0.001913]
[1722667448990,0.93854198,61814.0,61813.0,0.001913]
[1722667450197,0.94854198,61814.0,61813.0,0.001913]
[1722667450757,0.97154198,61814.0,61813.0,0.001913]
[1722667450951,1.21420498,61814.0,61813.0,0.001913]
[1722667451359,1.20420498,61814.0,61813.0,0.001913]
[1722667451968,1.03960924,61814.0,61813.0,0.001913]
[1722667452226,1.2042345,61814.0,61813.0,0.001913]
[1722667454977,1.20416734,61814.0,61813.0,0.001913]
[1722667455388,1.13951213,61814.0,61813.0,0.001913]
[1722667455586,1.33903901,61814.0,61813.0,0.001913]
[1722667455816,1.58170201,61814.0,61813.0,0.001913]
[1722667456007,1.33903901,61814.0,61813.0,0.001913]
[1722667456383,1.58170201,61814.0,61813.0,0.001913]
[1722667459022,1.58199684,61814.0,61813.0,0.001913]
[1722667459406,1.40526303,61814.0,61813.0,0.001913]
[1722667459609,1.58132417,61814.0,61813.0,0.001913]
[1722667460165,1.68132417,61814.0,61813.0,0.001913]
[1722667462495,1.41092407,61814.0,61813.0,0.001913]
[1722667462705,1.68141292,61814.0,61813.0,0.001913]
[1722667466036,1.68141292,61814.0,61813.0,0.00171285]
[1722667470318,1.68274031,61814.0,61813.0,0.00171285]
[1722667472839,1.44007731,61814.0,61813.0,0.00171285]
[1722667473284,1.49627731,61814.0,61813.0,0.00171285]
[1722667473480,1.49630868,61814.0,61813.0,0.00171285]
[1722667474572,1.49560868,61814.0,61813.0,0.00171285]
[1722667477046,1.496522,61814.0,61813.0,0.00171285]
[1722667480793,1.49633135,61814.0,61813.0,0.00171285]
[1722667480997,1.22376107,61814.0,61813.0,0.00171285]
[1722667481212,1.49650744,61814.0,61813.0,0.00171285]
[1722667482803,1.49662466,61814.0,61813.0,0.00171285]
[1722667484246,1.49622655,61814.0,61813.0,0.00171285]
[1722667487698,1.40011355,61814.0,61813.0,0.00171285]
[1722667487904,1.49635767,61814.0,61813.0,0.00171285]
[1722667489932,1.48475793,61814.0,61813.0,0.00171285]
[1722667491350,1.41110175,61814.0,61813.0,0.00171285]
[1722667491556,1.46730175,61814.0,61813.0,0.00171285]
[1722667491765,1.4876411,61814.0,61813.0,0.00171285]
[1722667492533,1.4676411,61814.0,61813.0,0.00171285]
[1722667492728,1.46767095,61814.0,61813.0,0.00171285]
[1722667492925,1.36111243,61814.0,61813.0,0.00171285]
[1722667493156,1.36118487,61814.0,61813.0,0.00171285]
[1722667494951,1.3611247,61814.0,61813.0,0.00171285]
[1722667495102,1.36172385,61814.0,61813.0,0.00171285]
[1722667498518,1.36167561,61814.0,61813.0,0.00171285]
[1722667500196,1.35167561,61814.0,61813.0,0.00171285]
[1722667500604,1.36167561,61814.0,61813.0,0.00171285]
[1722667500806,1.46843556,61814.0,61813.0,0.00171285]
[1722667501170,1.12596133,61814.0,61813.0,0.00171285]
[1722667501379,1.35324892,61814.0,61813.0,0.00171285]
[1722667501796,1.4599956,61814.0,61813.0,0.00171285]
[1722667502010,1.3517494,61814.0,61813.0,0.00171285]
[1722667502779,1.2617019,61814.0,61813.0,0.00171285]
[1722667502962,1.36323593,61814.0,61813.0,0.00171285]
[1722667504702,1.36310154,61814.0,61813.0,0.00171285]
[1722667505730,1.3631487,61814.0,61813.0,0.00171285]
[1722667508176,1.19081965,61814.0,61813.0,0.00171285]
[1722667508375,1.36233088,61814.0,61813.0,0.00171285]
[1722667510221,1.11966788,61814.0,61813.0,0.00171285]
[1722667510805,1.10966788,61814.0,61813.0,0.00171285]
[1722667511005,1.08666788,61814.0,61813.0,0.00171285]
[1722667511225,0.74400488,61814.0,61813.0,0.00171285]
[1722667511777,1.15056489,61814.0,61813.0,0.00171285]
[1722667511931,1.15056502,61814.0,61813.0,0.00171285]
[1722667512138,0.88621672,61814.0,61813.0,0.00171285]
[1722667512342,0.98667621,61814.0,61813.0,0.00171285]
[1722667512505,0.98660412,61814.0,61813.0,0.00171285]
[1722667512959,1.15049985,61814.0,61813.0,0.00171285]
[1722667513167,0.98660412,61814.0,61813.0,0.00171285]
[1722667513367,1.1504996,61814.0,61813.0,0.00171285]
[1722667513971,0.98660412,61814.0,61813.0,0.00171285]
[1722667514364,1.15048937,61814.0,61813.0,0.00171285]
[1722667515249,1.05003761,61814.0,61813.0,0.00171285]
[1722667515427,0.98574528,61814.0,61813.0,0.00171285]
[1722667515634,1.14962609,61814.0,61813.0,0.00171285]
[1722667517819,1.14962258,61814.0,61813.0,0.00171285]
[1722667519081,0.98574528,61814.0,61813.0,0.00171285]
[1722667519200,1.22840828,61814.0,61813.0,0.00171285]
[1722667519402,1.23840828,61814.0,61813.0,0.00171285]
[1722667519804,0.98574528,61814.0,61813.0,0.00171285]
[1722667520208,1.09194248,61814.0,61813.0,0.00171285]
[1722667520843,1.36460548,61814.0,61813.0,0.00171285]
[1722667521078,1.38760548,61814.0,61813.0,0.00171285]
[1722667522272,1.28763077,61814.0,61813.0,0.00171285]
[1722667522475,1.38521935,61814.0,61813.0,0.00171285]
[1722667522725,1.20840443,61814.0,61813.0,0.00171285]
[1722667522853,1.38521561,61814.0,61813.0,0.00171285]
[1722667523910,1.38529258,61814.0,61813.0,0.00171285]
[1722667524671,1.62795558,61814.0,61813.0,0.00171285]
[1722667525065,1.72795558,61814.0,61813.0,0.00171285]
[1722667527339,1.72791772,61814.0,61813.0,0.00171285]
[1722667527918,1.89861772,61814.0,61813.0,0.00171285]
[1722667529267,1.71885148,61814.0,61813.0,0.00171285]
[1722667529418,1.9052782,61814.0,61813.0,0.00271285]
[1722667529822,1.8872782,61814.0,61813.0,0.000913]
[1722667530086,1.8992782,61814.0,61813.0,0.002913]
[1722667530292,1.9132782,61814.0,61813.0,0.002913]
[1722667530646,1.8992782,61814.0,61813.0,0.001913]
[1722667531028,1.8992782,61814.0,61813.0,0.002913]
[1722667531231,1.9132782,61814.0,61813.0,0.002913]
[1722667532898,1.91302725,61814.0,61813.0,0.002913]
[1722667533347,1.91312592,61814.0,61813.0,0.002913]
[1722667535291,2.15578892,61814.0,61813.0,0.002913]
[1722667535422,0.2007,61810.0,61809.0,0.000913]
[1722667535773,0.2007,61810.0,61788.0,0.000913]
[1722667535774,0.420341,61789.0,61788.0,0.000913]
[1722667535970,0.89067786,61789.0,61788.0,0.000913]
[1722667536172,1.03635406,61789.0,61788.0,0.000913]
[1722667536380,0.89113831,61789.0,61788.0,0.000913]
[1722667536792,0.64837731,61789.0,61788.0,0.000913]
[1722667536995,0.59217731,61789.0,61788.0,0.000913]
[1722667537409,0.59317731,61789.0,61788.0,0.011913]
[1722667537606,0.71455622,61789.0,61788.0,0.011913]
[1722667537817,0.64491601,61789.0,61788.0,0.018913]
[1722667538041,0.59424024,61789.0,61788.0,0.018913]
[1722667538252,0.71553253,61789.0,61788.0,0.018913]
[1722667538457,0.25649072,61789.0,61788.0,0.018913]
[1722667538652,0.23223103,61789.0,61788.0,0.018913]
[1722667538808,0.15945924,61789.0,61788.0,0.018913]
[1722667539259,0.2322243,61789.0,61788.0,0.018913]
[1722667539762,0.15945924,61789.0,61788.0,0.018913]
[1722667540076,0.23222459,61789.0,61788.0,0.018913]
[1722667540461,0.23221805,61789.0,61788.0,0.018913]
[1722667542013,0.15945924,61789.0,61788.0,0.018913]
[1722667542712,0.23221805,61789.0,61788.0,0.018913]
[1722667543451,0.15945924,61789.0,61788.0,0.018913]
[1722667544392,0.20795112,61789.0,61788.0,0.018913]
[1722667544805,0.15945924,61789.0,61788.0,0.018913]
[1722667545787,0.20794935,61789.0,61788.0,0.018913]
[1722667545989,0.28083924,61789.0,61788.0,0.018913]
[1722667546128,0.35357706,61789.0,61788.0,0.018913]
[1722667547462,0.28083924,61789.0,61788.0,0.018913]
[1722667548263,0.28083924,61789.0,61788.0,0.018713]
[1722667550230,0.32932361,61789.0,61788.0,0.018713]
[1722667550644,0.28083924,61789.0,61788.0,0.018713]
[1722667551001,0.32932302,61789.0,61788.0,0.018713]
[1722667551211,0.39992641,61789.0,61788.0,0.018713]
[1722667552239,0.27854641,61789.0,61788.0,0.018713]
[1722667552379,0.2079427,61789.0,61788.0,0.018713]
[1722667553371,0.30303676,61789.0,61788.0,0.018713]
[1722667553771,0.30311114,61789.0,61788.0,0.018713]
[1722667553971,0.23037332,61789.0,61788.0,0.018713]
[1722667554614,0.35175332,61789.0,61788.0,0.018713]
[1722667556614,0.42446521,61789.0,61788.0,0.018713]
[1722667557422,0.30308521,61789.0,61788.0,0.018713]
[1722667558264,0.23219115,61789.0,61788.0,0.018713]
[1722667558652,0.30303376,61789.0,61788.0,0.018713]
[1722667559499,0.42441376,61789.0,61788.0,0.018713]
[1722667559850,0.42441919,61789.0,61788.0,0.018713]
[1722667560301,0.35168728,61789.0,61788.0,0.018713]
[1722667560649,0.23030728,61789.0,61788.0,0.018713]
[1722667560851,0.3030599,61789.0,61788.0,0.018713]
[1722667561049,0.23030728,61789.0,61788.0,0.018713]
[1722667561578,0.23031178,61789.0,61788.0,0.018713]
[1722667561986,0.32729555,61789.0,61788.0,0.018713]
[1722667562460,0.23031178,61789.0,61788.0,0.018713]
[1722667562659,0.32729555,61789.0,61788.0,0.018713]
[1722667563493,0.23031178,61789.0,61788.0,0.018713]
[1722667563897,0.32735652,61789.0,61788.0,0.018713]
[1722667564245,0.23031178,61789.0,61788.0,0.018713]
[1722667564444,0.32737237,61789.0,61788.0,0.018713]
[1722667564888,0.44875224,61789.0,61788.0,0.018713]
[1722667565098,0.35169178,61789.0,61788.0,0.018713]
[1722667565455,0.23031178,61789.0,61788.0,0.018713]
[1722667565665,0.32543563,61789.0,61788.0,0.018713]
[1722667565874,0.15945924,61789.0,61788.0,0.018713]
[1722667566044,0.32552613,61789.0,61788.0,0.018713]
[1722667566248,0.44687283,61789.0,61788.0,0.018713]
[1722667566808,0.56825283,61789.0,61788.0,0.018713]
[1722667567417,0.68966713,61789.0,61788.0,0.018713]
[1722667569073,0.93325813,61789.0,61788.0,0.018713]
[1722667569938,0.93183071,61789.0,61788.0,0.018713]
[1722667570150,0.76719124,61789.0,61788.0,0.018713]
[1722667570552,0.98841657,61789.0,61788.0,0.018713]
[1722667570697,0.74565557,61789.0,61788.0,0.018713]
[1722667570900,0.68945557,61789.0,61788.0,0.018713]
[1722667571467,0.69032296,61789.0,61788.0,0.018713]
[1722667572720,0.78122296,61789.0,61788.0,0.018713]
[1722667572892,0.76732296,61789.0,61788.0,0.083313]
[1722667573125,0.69032296,61789.0,61788.0,0.083313]
[1722667573418,0.52443024,61789.0,61788.0,0.018713]
[1722667573631,0.69015071,61789.0,61788.0,0.018713]
[1722667573831,0.70405071,61789.0,61788.0,0.018713]
[1722667574040,0.69015071,61789.0,61788.0,0.018713]
[1722667574256,0.74635071,61789.0,61788.0,0.018713]
[1722667574491,1.07171171,61789.0,61788.0,0.079813]
[1722667574718,1.07171171,61789.0,61788.0,0.018713]
[1722667574719,0.44738971,61789.0,61788.0,0.018713]
[1722667574930,0.44738971,61789.0,61788.0,0.096413]
[1722667575866,0.44738971,61789.0,61788.0,0.157513]
[1722667576093,0.32600971,61789.0,61788.0,0.157513]
[1722667576267,0.32600971,61789.0,61788.0,0.018713]
[1722667576466,0.32600971,61789.0,61788.0,0.079813]
[1722667576940,0.16028924,61789.0,61788.0,0.079813]
[1722667577131,0.32607557,61789.0,61788.0,0.079813]
[1722667577766,0.32607557,61789.0,61788.0,0.018713]
[1722667579477,0.32607557,61789.0,61788.0,0.096413]
[1722667580220,0.16861633,61789.0,61788.0,0.46056]
[1722667580410,0.0757425,61789.0,61788.0,0.703325]
[1722667580622,0.00283,61789.0,61788.0,0.703325]
[1722667581070,0.00283,61789.0,61788.0,0.764425]
[1722667581603,0.00183,61789.0,61788.0,0.757425]
[1722667582019,0.05774962,61793.0,61791.0,0.381553]
[1722667582218,0.05774962,61794.0,61793.0,0.121372]
[1722667582424,0.09722054,61795.0,61793.0,0.121372]
[1722667582619,0.09722054,61795.0,61794.0,0.260171]
[1722667582819,0.121357,61801.0,61795.0,0.1388]
[1722667582820,0.09722054,61796.0,61795.0,0.1388]
[1722667583445,0.09714808,61796.0,61793.0,0.121371]
[1722667583642,0.001,61794.0,61793.0,0.130371]
[1722667584058,0.001,61794.0,61793.0,0.269171]
[1722667584386,0.09714808,61796.0,61794.0,0.1388]
[1722667584590,0.09814808,61796.0,61795.0,0.1458]
[1722667585018,0.09714808,61796.0,61795.0,0.1388]
[1722667586475,0.28970961,61798.0,61794.0,0.1388]
[1722667586476,0.09714808,61797.0,61794.0,0.1388]
[1722667586632,0.09714808,61797.0,61796.0,0.0777]
[1722667586859,0.09714808,61797.0,61796.0,0.1388]
[1722667587919,0.09914808,61797.0,61796.0,0.1538]
[1722667588162,0.002,61797.0,61796.0,0.1538]
[1722667590475,0.28082424,61797.0,61796.0,0.1538]
[1722667590681,0.94385385,61797.0,61796.0,0.1538]
[1722667590885,0.64984076,61797.0,61796.0,0.1538]
[1722667591091,0.57975424,61797.0,61796.0,0.1538]
[1722667591316,0.77120101,61797.0,61796.0,0.1538]
[1722667591639,0.77087687,61797.0,61796.0,0.1538]
[1722667591852,0.71448216,61797.0,61796.0,0.1538]
[1722667592067,0.35039356,61797.0,61796.0,0.1538]
[1722667592227,0.22902856,61797.0,61796.0,0.1538]
[1722667592427,0.22902856,61797.0,61796.0,0.275167]
[1722667592428,0.00180529,61797.0,61796.0,0.275167]
[1722667592627,0.00180529,61797.0,61796.0,0.517901]
[1722667592828,0.07461166,61797.0,61796.0,0.517901]
[1722667593439,0.07456379,61797.0,61796.0,0.517901]
[1722667594135,0.05029695,61797.0,61796.0,0.517901]
[1722667594255,0.05029236,61797.0,61796.0,0.517901]
[1722667595609,0.00176529,61797.0,61796.0,0.517901]
[1722667595869,0.05028807,61797.0,61796.0,0.517901]
[1722667596826,0.05028474,61797.0,61796.0,0.517901]
[1722667598422,0.05027954,61797.0,61796.0,0.517901]
[1722667599145,0.00176529,61797.0,61796.0,0.517901]
[1722667599511,0.05027954,61797.0,61796.0,0.517901]
[1722667600163,0.00176529,61797.0,61796.0,0.517901]
[1722667600828,0.05027954,61797.0,61796.0,0.517901]
[1722667601251,0.00259529,61797.0,61796.0,0.517901]
[1722667601480,0.00259529,61797.0,61796.0,1.003369]
[1722667601713,0.12128563,61803.0,61796.0,1.003369]
[1722667601714,0.04851425,61806.0,61801.0,0.144]
[1722667601928,0.14554276,61816.0,61801.0,0.144]
[1722667601929,0.04851425,61818.0,61811.0,0.62935]
[1722667602150,0.05763425,61819.0,61811.0,0.806887]
[1722667602337,0.00912,61819.0,61811.0,1.049562]
[1722667603191,0.09683,61814.0,61813.0,0.849334]
[1722667603399,0.02465902,61814.0,61813.0,1.27379324]
[1722667603611,0.02465902,61814.0,61813.0,1.51646024]
[1722667603802,0.02465902,61814.0,61813.0,1.093334]
[1722667604007,0.02465902,61814.0,61813.0,1.149534]
[1722667606036,0.02565902,61814.0,61813.0,1.177534]
[1722667606555,0.02565902,61814.0,61813.0,1.163534]
[1722667606556,0.02465902,61814.0,61813.0,1.163534]
[1722667606768,0.02465902,61814.0,61813.0,1.177534]
[1722667606920,0.02565902,61814.0,61813.0,1.177534]
[1722667607531,0.02565902,61814.0,61813.0,1.18707216]
[1722667608336,0.02557902,61814.0,61813.0,1.18707216]
[1722667608774,0.001,61814.0,61813.0,1.18707216]
[1722667615201,0.001,61814.0,61813.0,1.19707216]
[1722667615573,0.001,61814.0,61813.0,1.3565314]
[1722667615703,0.001,61814.0,61813.0,1.5991984]
[1722667616774,0.001,61814.0,61813.0,1.6221984]
[1722667621158,0.00912,61819.0,61818.0,0.012]
[1722667621355,0.00912,61819.0,61818.0,0.75062924]
[1722667621562,0.00912,61819.0,61818.0,1.33592324]
[1722667621732,0.00912,61819.0,61818.0,1.57857024]
[1722667621949,0.00912,61819.0,61818.0,1.56657024]
[1722667622921,0.00912,61819.0,61818.0,1.57857024]
[1722667623413,0.00912,61819.0,61818.0,1.59257024]
[1722667624096,0.00912,61819.0,61818.0,1.60657024]
[1722667625005,0.00912,61819.0,61818.0,1.70657024]
[1722667625208,0.00912,61819.0,61818.0,1.95921724]
[1722667625416,0.00912,61819.0,61818.0,1.96921724]
[1722667625611,0.00912,61819.0,61818.0,1.94121724]
[1722667625817,0.01312,61819.0,61818.0,1.94321724]
[1722667626989,0.01312,61819.0,61818.0,1.67857024]
[1722667627190,0.01312,61819.0,61818.0,1.56857024]
[1722667627998,0.01312,61819.0,61818.0,1.145464]
[1722667631137,0.01312,61819.0,61818.0,0.764817]
[1722667631544,0.07852,61819.0,61818.0,0.0582]
[1722667631774,0.07852,61819.0,61818.0,0.123323]
[1722667632039,0.07852,61819.0,61818.0,0.46597]
[1722667632238,0.01312,61819.0,61818.0,0.708617]
[1722667632456,0.00912,61819.0,61818.0,0.707617]
[1722667632656,0.00912,61819.0,61818.0,0.720617]
[1722667633070,0.00912,61819.0,61818.0,0.734617]
[1722667633354,0.00912,61819.0,61818.0,0.706617]
[1722667633564,0.00912,61819.0,61818.0,0.962264]
[1722667633774,0.00912,61819.0,61818.0,0.976264]
[1722667636069,0.00912,61819.0,61818.0,0.733617]
[1722667636448,0.00912,61819.0,61818.0,0.976264]
[1722667637623,0.00912,61819.0,61818.0,1.26506124]
[1722667638571,0.00912,61819.0,61818.0,1.23806124]
[1722667638751,0.01012,61819.0,61818.0,1.26606124]
[1722667638992,0.01112,61819.0,61818.0,1.26618022]
[1722667642385,0.1626,61822.0,61821.0,0.988522]
[1722667642587,0.1626,61822.0,61821.0,1.27617898]
[1722667643113,0.1626,61822.0,61821.0,1.36027898]
[1722667643369,0.1626,61822.0,61821.0,1.228822]
[1722667644150,0.1626,61822.0,61821.0,1.3600511]
[1722667644349,0.1636,61822.0,61821.0,1.242822]
[1722667644549,0.1636,61822.0,61821.0,1.37405468]
[1722667644961,0.1636,61822.0,61821.0,1.242822]
[1722667645372,0.1646,61822.0,61821.0,1.256822]
[1722667645571,0.1646,61822.0,61821.0,1.38803402]
[1722667645979,0.1646,61822.0,61821.0,1.117522]
[1722667647890,0.1646,61822.0,61821.0,1.12718582]
[1722667649623,0.1617055,61822.0,61821.0,1.12718582]
[1722667651256,0.1617055,61822.0,61821.0,0.74425082]
[1722667652900,0.1617055,61822.0,61821.0,1.26648582]
[1722667653096,0.1617055,61822.0,61821.0,1.39773934]
[1722667653502,0.1617055,61822.0,61821.0,1.26648582]
[1722667653973,0.1617055,61822.0,61821.0,1.39788925]
[1722667655874,0.1617055,61822.0,61821.0,1.26648582]
[1722667656393,0.1617055,61822.0,61821.0,1.39790117]
[1722667660478,0.1617055,61822.0,61821.0,1.26648582]
[1722667660690,0.1617055,61822.0,61821.0,1.39774097]
[1722667662676,0.002,61822.0,61821.0,1.39774097]
[1722667663209,0.002,61822.0,61821.0,1.31354097]
[1722667663420,0.002,61822.0,61821.0,1.25744097]
[1722667663644,0.002,61822.0,61821.0,1.31354097]
[1722667664197,0.002,61822.0,61821.0,1.31326602]
[1722667666385,0.002,61822.0,61821.0,1.31417902]
[1722667666786,0.00283,61822.0,61821.0,1.31417902]
[1722667667571,0.00283,61822.0,61821.0,1.18319882]
[1722667667792,0.00283,61822.0,61821.0,1.31392358]
[1722667668208,0.00283,61822.0,61821.0,1.31387839]
[1722667671362,0.00283,61822.0,61821.0,1.31334854]
[1722667675568,0.00283,61822.0,61821.0,0.93141354]
[1722667676497,0.00283,61822.0,61821.0,1.17404854]
[1722667676948,0.14393,61822.0,61821.0,0.13857682]
[1722667677156,0.37420183,61822.0,61821.0,0.028913]
[1722667677350,0.66533724,61822.0,61821.0,0.028913]
[1722667677561,0.84121061,61822.0,61821.0,0.028913]
[1722667677757,1.2294678,61822.0,61821.0,0.028913]
[1722667677912,1.08384261,61822.0,61821.0,0.028913]
[1722667678313,1.08222316,61822.0,61821.0,0.014913]
[1722667678586,1.08122316,61822.0,61821.0,0.004913]
[1722667678769,0.90596924,61822.0,61821.0,0.004913]
[1722667679102,0.83872096,61822.0,61821.0,0.004913]
[1722667679338,0.49474677,61822.0,61821.0,0.011913]
[1722667679511,0.49317238,61822.0,61821.0,0.011913]
[1722667679915,0.21439714,61822.0,61821.0,0.007913]
[1722667680093,0.26421411,61822.0,61821.0,0.12923]
[1722667680279,0.26321411,61822.0,61821.0,0.12323]
[1722667680630,0.26321411,61822.0,61821.0,0.000913]
[1722667680919,0.26321308,61822.0,61821.0,0.003913]
[1722667681118,0.14193,61822.0,61821.0,0.003913]
[1722667681252,0.26321322,61822.0,61821.0,0.003913]
[1722667681466,0.26321095,61822.0,61821.0,0.000913]
[1722667681659,0.14293,61822.0,61821.0,0.016913]
[1722667681863,0.23993669,61822.0,61821.0,0.011913]
[1722667682127,0.26421095,61822.0,61821.0,0.011913]
[1722667682419,0.26421095,61822.0,61821.0,0.025913]
[1722667682420,0.14393,61822.0,61821.0,0.025913]
[1722667682580,0.23992004,61822.0,61821.0,0.011913]
[1722667682775,0.14393,61822.0,61821.0,0.024913]
[1722667682959,0.14393,61822.0,61821.0,0.011913]
[1722667683167,0.14293,61822.0,61821.0,0.000913]
[1722667683365,0.26616375,61822.0,61821.0,0.023913]
[1722667683575,0.54493899,61822.0,61821.0,0.023913]
[1722667683823,0.73760088,61822.0,61821.0,0.023913]
[1722667683990,0.97923288,61822.0,61821.0,0.014913]
[1722667684265,1.22793626,61822.0,61821.0,0.014913]
[1722667684470,1.32508776,61822.0,61821.0,0.014913]
[1722667684704,1.32408776,61822.0,61821.0,0.011913]
[1722667685048,1.32408776,61822.0,61821.0,0.016913]
[1722667685236,1.32408776,61822.0,61821.0,0.011913]
[1722667685444,1.08145576,61822.0,61821.0,0.011913]
[1722667685631,1.08145576,61822.0,61821.0,0.016913]
[1722667686141,1.08045576,61822.0,61821.0,0.005913]
[1722667686338,0.97723288,61822.0,61821.0,0.006913]
[1722667687763,0.97723288,61822.0,61821.0,0.005913]
[1722667687966,0.97723288,61822.0,61821.0,0.000913]
[1722667688178,0.97923288,61822.0,61821.0,0.001913]
[1722667688381,0.97943107,61822.0,61821.0,0.001913]
[1722667689479,0.97943107,61822.0,61821.0,0.000913]
[1722667689480,0.97743107,61822.0,61821.0,0.000913]
[1722667689694,1.0984918,61822.0,61821.0,0.000913]
[1722667689884,1.1004918,61822.0,61821.0,0.001913]
[1722667690096,0.8578598,61822.0,61821.0,0.001913]
[1722667690280,0.51955153,61822.0,61821.0,0.001913]
[1722667690492,0.49533029,61822.0,61821.0,0.001913]
[1722667690729,0.66533724,61822.0,61821.0,0.001913]
[1722667691294,0.37401429,61822.0,61821.0,0.001913]
[1722667691507,0.4711211,61822.0,61821.0,0.001913]
[1722667691727,0.30138924,61822.0,61821.0,0.001913]
[1722667692076,0.34980335,61822.0,61821.0,0.001913]
[1722667692475,0.34980073,61822.0,61821.0,0.001913]
[1722667695282,0.30138924,61822.0,61821.0,0.001913]
[1722667699044,0.00283,61822.0,61821.0,0.001913]
[1722667699204,0.00283,61822.0,61821.0,0.17933]
[1722667699594,0.00283,61822.0,61821.0,0.421965]
[1722667700059,0.00083,61822.0,61821.0,0.6646]
[1722667700260,0.00083,61822.0,61821.0,1.054235]
[1722667700462,0.00083,61822.0,61821.0,1.065235]
[1722667700463,0.00183,61822.0,61821.0,1.065235]
[1722667701187,0.00083,61822.0,61821.0,0.8116]
[1722667701364,0.00083,61822.0,61821.0,0.568965]
[1722667701586,0.00183,61822.0,61821.0,0.582965]
[1722667701789,0.00083,61822.0,61821.0,0.568965]
[1722667702088,0.00183,61822.0,61821.0,0.582965]
[1722667702441,0.00183,61822.0,61821.0,0.8256]
[1722667703221,0.00183,61822.0,61821.0,1.068235]
[1722667703425,0.00183,61822.0,61821.0,1.196235]
[1722667703426,0.00383,61822.0,61821.0,1.196235]
[1722667703822,0.00283,61822.0,61821.0,1.182235]
[1722667704199,0.00383,61822.0,61821.0,1.196235]
[1722667722619,0.00383,61822.0,61821.0,1.140135]